{"text_format":"1","workbook":"xlsx","n_sheets":1,"sheets":["Sheet1"],"not_rendered":{"charts":0,"images":0,"macros":1,"external_links":0,"defined_names":45,"comments":0,"pivot_tables":0},"unopened":[],"bounds":{"document_bytes":16777216,"sheet_cells":100000,"rows_first":2000,"rows_last":500,"rows_between":2000,"halvings":0,"cell_chars":16384,"cell_head_chars":4096},"cells_cut":0,"cells_raw":0,"read":"whole","date_system":"1900"}

{"sheet":"Sheet1","index":0,"n_rows":39,"n_cols":39,"rows_kept":39,"cut":false,"hidden":false,"merged":[[7,19,8,19],[7,16,14,16],[7,18,14,18],[7,20,14,20],[9,1,14,1],[1,2,5,12],[2,19,4,19],[2,18,4,18],[7,14,8,14],[7,15,14,15],[7,3,7,7],[7,8,14,8],[7,13,14,13],[7,9,7,10],[7,12,14,12],[7,11,14,11],[7,17,8,17]]}
[]
[null,null,"ez-FRAUDTM"]
[null,null,null,null,null,null,null,null,null,null,null,null,null,"ENTER WINNING TARGET HERE",null,null,null,null,"$",1000]
[null,null,null,null,null,null,null,null,null,null,null,null,null,"ONE MILLION (1,000,000) = 1,000"]
[null,null,null,null,null,null,null,null,null,null,null,null,null,"ALL AMOUNTS ARE IN THOUSANDS (k)"]
[]
[]
[null,null,"NAME","F  I  N  E  S",null,null,null,null," ",null,null,"LIBEL","REWARD"," ","$","DEPOSIT"," ","TOTAL $"," ","$ TO WIN"]
[null,null,"Enter Below","F","F","F","F","F",null,-50,50,null,null,null,null,null,null,null,null,null,null,null,null,null,"L","A",null,"Deposit",null,null,"menu","fines","menu","fines","menu","fines","menu","fines","menu"]
[null,null,"Player #1",null,null,null,null,null,null,null,null,null,null,null,null,null,null,{"$f":"IF(H10=\"J\",0,COUNTIF(D10,\"F\")*D$17+COUNTIF(E10,\"F\")*E$17+COUNTIF(F10,\"F\")*F$17+COUNTIF(G10,\"F\")*G$17+AB10+Y10+Z10)","v":0},null,{"$f":"Win_Target-R10","v":1000},null,null,{"$f":"J10","v":0},{"$f":"K10","v":0},null,null,null,null,null,null,"F",{"$f":"D10","v":0},{"$f":"IF(AF10=\"F\",\"F\",\"\")","v":""},{"$f":"E10","v":0},{"$f":"IF(AH10=\"F\",\"F\",\"\")","v":""},{"$f":"F10","v":0},{"$f":"IF(AJ10=\"F\",\"F\",\"\")","v":""},{"$f":"G10","v":0},{"$f":"IF(AL10=\"F\",\"J\",\"\")","v":""}]
[null,null,"Player #2",null,null,null,null,null,null,null,null,null,null,null,null,null,null,0,null,1000,null,null,{"$f":"J11","v":0},0,null,null,null,null,null,null,"F",0,{"$f":"IF(AF11=\"F\",\"F\",\"\")","v":""},0,{"$f":"IF(AH11=\"F\",\"F\",\"\")","v":""},0,{"$f":"IF(AJ11=\"F\",\"F\",\"\")","v":""},0,""]
[null,null,"Player #3",null,null,null,null,null,null,null,null,null,null,null,null,null,null,0,null,1000,null,null,0,0,null,null,null,null,null,null,"F",0,"",0,"",0,"",0,""]
[null,null,"Player #4",null,null,null,null,null,null,null,null,null,null,null,null,null,null,0,null,1000,null,null,0,0,null,null,null,null,null,null,"F",0,"",0,"",0,"",0,""]
[null,null,"Player #5",null,null,null,null,null,null,null,null,null,null,null,null,null,null,0,null,1000,null,null,0,0,null,null,null,null,null,null,"F",0,"",0,"",0,"",0,""]
[null,null,"Player #6",null,null,null,null,null,null,null,null,null,null,null,null,null,null,0,null,1000,null,null,0,0,null,null,null,null,null,null,"F",0,"",0,"",0,"",0,""]
[]
[null,null,"Winner",-25,-50,-100,-250,"JAIL",null," "," ",null,null,null,null,null,null,null,null,null,null,null,null,null,{"$f":"X27","v":0},{"$f":"Z27","v":0}]
[]
[null,null,"fraud@kandigames90.com"]
[]
[null,null,null,null,null,null,null,null,null,null,null,null,null,null,null,null,null,null,null,null,null,1,null,{"$f":"IF($Z$28=$V21,\"\",IF($X$27=0,-50,\"\"))","v":-50},null,{"$f":"IF($X$28=$V21,\"\",IF($Z$27=0,\"50\",\"\"))","v":"50"}]
[null,null,null,null,null,null,null,null,null,null,null,null,null,null,null,null,null,null,null,null,null,2,null,{"$f":"IF($Z$28=$V22,\"\",IF($X$27=0,-50,\"\"))","v":-50},null,{"$f":"IF($X$28=$V22,\"\",IF($Z$27=0,\"50\",\"\"))","v":"50"},null,15]
[null,null,null,null,null,null,null,null,null,null,null,null,null,null,null,null,null,null,null,null,null,3,null,-50,null,"50",null,20]
[null,null,null,null,null,null,null,null,null,null,null,null,null,null,null,null,null,null,null,null,null,4,null,-50,null,"50",null,25]
[null,null,null,null,null,null,null,null,null,null,null,null,null,null,null,null,null,null,null,null,null,5,null,-50,null,"50",null,30]
[null,null,null,null,null,null,null,null,null,null,null,null,null,null,null,null,null,null,null,null,null,6,null,-50,null,"50",null,40]
[null,null,null,null,null,null,null,null,null,null,null,null,null,null,null,null,null,null,null,null,null,"count",null,{"$f":"COUNTIF(J10:J15,-50)","v":0},null,{"$f":"COUNTIF(K10:K15,50)","v":0},null,50]
[null,null,null,null,null,null,null,null,null,null,null,null,null,null,null,null,null,null,null,null,null,"match",null,{"$f":"IFERROR(MATCH(-50,J10:J15,0),0)","v":0},null,{"$f":"IFERROR(MATCH(50,K10:K15,0),0)","v":0},null,60]
[null,null,null,null,null,null,null,null,null,null,null,null,null,null,null,null,null,null,null,null,null,null,null,null,null,null,null,80]
[null,null,null,null,null,null,null,null,null,null,null,null,null,null,null,null,null,null,null,null,null,null,null,null,null,null,null,90]
[null,null,null,null,null,null,null,null,null,null,null,null,null,null,null,null,null,null,null,null,null,null,null,null,null,null,null,100]
[null,null,null,null,null,null,null,null,null,null,null,null,null,null,null,null,null,null,null,null,null,null,null,null,null,null,null,120]
[null,null,null,null,null,null,null,null,null,null,null,null,null,null,null,null,null,null,null,null,null,null,null,null,null,null,null,150]
[null,null,null,null,null,null,null,null,null,null,null,null,null,null,null,null,null,null,null,null,null,null,null,null,null,null,null,160]
[null,null,null,null,null,null,null,null,null,null,null,null,null,null,null,null,null,null,null,null,null,null,null,null,null,null,null,200]
[null,null,null,null,null,null,null,null,null,null,null,null,null,null,null,null,null,null,null,null,null,null,null,null,null,null,null,250]
[null,null,null,null,null,null,null,null,null,null,null,null,null,null,null,null,null,null,null,null,null,null,null,null,null,null,null,300]
[null,null,null,null,null,null,null,null,null,null,null,null,null,null,null,null,null,null,null,null,null,null,null,null,null,null,null,400]
[null,null,null,null,null,null,null,null,null,null,null,null,null,null,null,null,null,null,null,null,null,null,null,null,null,null,null,500]